[Event "Romanian Superliga 2024"]
[Site "Mamaia"]
[Date "2024.10.02"]
[Round "5.27"]
[White "Vavric, Pavel"]
[Black "Grigore, George-Gabriel"]
[Result "1/2-1/2"]
[ECO "B31"]
[WhiteElo "2285"]
[BlackElo "2414"]
[Annotator "TA"]
[PlyCount "35"]
[EventDate "2024.09.26"]
[EventType "team-tourn"]
[EventCountry "ROU"]
[SourceTitle "playchess.com"]
[Source "ChessBase"]
[SourceQuality "1"]
[TimeControl "40/5400+30:1800+30"]

{[%evp 19,35,35,37,31,41,31,38,0,35,28,37,37,40,36,35,31,31,30]} 1. e4 {[%emt 0:00:05]} c5 {[%emt 0:04:47]} 2. Nf3 {[%emt 0:00:07]} Nc6 {[%emt 0:00:07]} 3. Bb5 {[%emt 0:00:08]} g6 {[%emt 0:00:11]} 4. Bxc6 {[%emt 0:00:09]} dxc6 {[%emt 0:00:47]} 5. d3 {[%emt 0:00:08]} Bg7 {[%emt 0:00:09]} 6. h3 {[%emt 0:00:09]} Nf6 {[%emt 0:00:20]} 7. Nc3 {[%emt 0:00:34]} O-O {[%emt 0:01:04]} 8. O-O {[%emt 0:00:08]} Nd7 {[%emt 0:10:55]} 9. Be3 {[%emt 0:01:37]} e5 {[%emt 0:00:51]} 10. Qd2 {[%emt 0:00:39]} Qe7 {[%emt 0:01:13]} 11. Bh6 {[%emt 0:02:46]} Bxh6 {[%emt 0:06:10]} 12. Qxh6 {[%emt 0:00:08]} f6 {[%emt 0:00:03]} 13. Nh2 {[%emt 0:04:17]} Rf7 {[%emt 0:01:04]} 14. Ne2 {[%emt 0:17:12]} Nf8 {[%emt 0:07:30]} 15. f4 {[%emt 0:17:38] White is slightly better.} exf4 $1 {[%emt 0:05:29]} 16. Rxf4 {[%emt 0:01:47]} Be6 {[%emt 0:04:04]} 17. Raf1 {[%emt 0:03:51]} Nd7 {[%emt 0:00:45]} 18. R4f2 {[%emt 0:05:19] Weighted Error Value: White=0.10 (very precise) /Black=0.06 (flawless) .  Inaccurate:     	White=1     	Black=1      OK:         	White=2     	Black=3      Strong:       	---       	Black=1} 1/2-1/2

[Event "Romanian Superliga 2024"]
[Site "Mamaia"]
[Date "2024.10.02"]
[Round "5.28"]
[White "Istratescu, Andrei"]
[Black "Sachilaru, Alexandru"]
[Result "1/2-1/2"]
[ECO "E97"]
[WhiteElo "2370"]
[BlackElo "2265"]
[Annotator "RC"]
[PlyCount "24"]
[EventDate "2024.09.26"]
[EventType "team-tourn"]
[EventCountry "ROU"]
[SourceTitle "playchess.com"]
[Source "ChessBase"]
[SourceQuality "1"]
[TimeControl "40/5400+30:1800+30"]

1. d4 {[%emt 0:00:48]} Nf6 {[%emt 0:00:08]} 2. c4 {[%emt 0:00:19]} g6 {[%emt 0:00:13]} 3. Nc3 {[%emt 0:06:06]} Bg7 {[%emt 0:00:18]} 4. e4 {[%emt 0:01:11]} d6 {[%emt 0:00:50]} 5. Be2 {[%emt 0:05:46]} O-O {[%emt 0:01:05]} 6. Nf3 {[%emt 0:02:33]} e5 {[%emt 0:01:06]} 7. O-O {[%emt 0:04:16]} Nc6 {[%emt 0:02:55]} 8. d5 {[%emt 0:01:34]} Ne7 {[%emt 0:00:51]} 9. Nd2 {[%emt 0:01:39]} Bh6 {[%emt 0:05:17]} 10. Rb1 {[%emt 0:06:57]} a5 {[%emt 0:16:33]} 11. a3 {[%emt 0:00:40]} a4 {[%emt 0:20:12]} 12. Bd3 {[%emt 0:12:01]} Bd7 {[%emt 0:03:14]} 1/2-1/2

[Event "Romanian Superliga 2024"]
[Site "Mamaia"]
[Date "2024.10.02"]
[Round "5.29"]
[White "Patrascu, Catalin-Lucian"]
[Black "Stepanencu, Nicodim-Cosmin"]
[Result "1-0"]
[ECO "B90"]
[WhiteElo "2298"]
[BlackElo "2296"]
[Annotator "TA"]
[PlyCount "107"]
[EventDate "2024.09.26"]
[EventType "team-tourn"]
[EventCountry "ROU"]
[SourceTitle "playchess.com"]
[Source "ChessBase"]
[SourceQuality "1"]
[TimeControl "40/5400+30:1800+30"]

{[%evp 17,107,25,32,18,21,29,29,7,22,15,32,10,10,2,26,5,50,50,40,30,81,56,125,124,109,107,146,114,127,116,116,109,107,115,102,92,102,101,97,90,110,60,110,40,90,94,126,52,95,-37,61,63,50,75,112,12,28,15,100,89,241,247,259,258,250,206,208,192,287,204,279,245,254,187,191,192,607,604,622,617,582,593,762,753,692,710,1212,1189,1166,1110,1077,1077]} 1. e4 {[%emt 0:00:02]} c5 {[%emt 0:00:38]} 2. Nf3 {[%emt 0:00:06]} d6 {[%emt 0:00:04]} 3. d4 {[%emt 0:01:16]} cxd4 {[%emt 0:00:06]} 4. Nxd4 {[%emt 0:00:02]} Nf6 {[%emt 0:00:07]} 5. Nc3 {[%emt 0:00:04]} a6 {[%emt 0:00:07]} 6. Be3 {[%emt 0:00:06]} e5 {[%emt 0:00:22]} 7. Nb3 {[%emt 0:00:07]} Be6 {[%emt 0:00:07]} 8. f3 {[%emt 0:00:10]} h5 {[%emt 0:00:30]} 9. Qd2 {[%emt 0:03:45]} Nbd7 {[%emt 0:00:10]} 10. Nd5 {[%emt 0:01:13]} Bxd5 {[%emt 0:00:14]} 11. exd5 {[%emt 0:00:04]} g6 {[%emt 0:00:06]} 12. c4 {[%emt 0:03:53] White has an edge.} b6 {[%emt 0:01:07]} 13. Be2 {[%emt 0:01:29]} Bg7 {[%emt 0:00:55]} 14. O-O {[%emt 0:02:43]} O-O {[%emt 0:00:14]} 15. Rac1 {[%emt 0:02:03]} Nh7 {[%emt 0:01:26]} 16. Na1 {[%emt 0:06:27][%cal Bb3a1,Ba1c2,Bc2b4,Bb4c6][%mdl 32]} f5 {[%emt 0:10:37]} 17. Nc2 {[%emt 0:37:53]} h4 {[%emt 0:06:03]} 18. Nb4 {[%emt 0:04:49]} Qf6 {[%emt 0:06:11] Black is weak on the light squares} (18... f4 $1 $11 19. Bf2 Qg5) 19. Kh1 $16 {[%emt 0:05:06]} Kh8 {[%emt 0:04:05]} (19... h3 $14) 20. Nc6 {[%emt 0:02:45]} Rae8 {[%emt 0:06:59]} 21. Bd3 {[%emt 0:04:08]} a5 {[%emt 0:04:25]} 22. Bb1 {[%emt 0:03:06] White is much more active.} h3 {[%emt 0:02:44]} 23. gxh3 {[%emt 0:01:02]} Qh4 {[%emt 0:00:50]} 24. Rg1 {[%emt 0:11:56]} Rf6 {[%emt 0:03:58]} 25. Qg2 {[%emt 0:02:41][%cal Ob1f5] Bxf5! would now be deadly.} Bh6 {[%emt 0:02:52]} 26. Bf2 {[%emt 0:01:10]} Qh5 {[%emt 0:00:55]} 27. Rc3 {[%emt 0:01:06]} Nc5 {[%emt 0:02:40]} 28. h4 {[%emt 0:01:10]} Rg8 {[%emt 0:07:14]} 29. Be1 {[%emt 0:01:46]} ({White should play} 29. b3 $16) 29... Rg7 {[%emt 0:02:18]} (29... Rf7 $14) 30. Bc2 {[%emt 0:02:35]} (30. b3 $16) 30... g5 {[%emt 0:00:13]} (30... Rf8 $14) 31. Qh3 {[%emt 0:00:28]} Qf7 {[%emt 0:09:02]} 32. hxg5 {[%emt 0:00:29]} ({Better is} 32. Ra3 $16) 32... Bxg5 {[%emt 0:00:52] [#]} 33. f4 {[%emt 0:00:35]} Rh6 {[%emt 0:00:35]} (33... exf4 $2 {loses.} 34. Nd4 Ne4 35. Rf3 $18) (33... Bxf4 $15 34. Rxg7 Qxg7 (34... Kxg7 35. Bh4 $16)) 34. Qxf5 $14 {[%emt 0:00:32]} Qxf5 {[%emt 0:15:03]} 35. Bxf5 {[%emt 0:00:04]} Bxf4 {[%emt 0:00:05][%csl Gf4][%cal Rh6h2] [#]} 36. h4 {[%emt 0:00:42]} ({White should try} 36. Bg3 $1 $16) 36... Ng5 $11 {[%emt 0:00:32][%cal Of4d2]} 37. Rg4 {[%emt 0:00:47]} Rf7 {[%emt 0:04:05]} (37... Nge4 $11 {remains equal.} 38. Rxg7 Kxg7 39. Bxe4 Nxe4) 38. Bc2 {[%emt 0:00:34]} Nd7 $2 {[%emt 0:03:56] Black cannot hold the game after this.} (38... Rg7 $16 {was called for.}) 39. Kg1 $18 {[%emt 0:00:33]} Nh7 {[%emt 0:00:54]} 40. Nd8 {[%emt 0:00:00]} Re7 {[%emt 0:00:00]} 41. Ne6 {[%emt 0:05:02]} Nhf6 {[%emt 0:01:54]} 42. Rg2 {[%emt 0:01:42]} Nh5 {[%emt 0:01:32]} (42... Nc5 {might work better.} 43. Nxc5 bxc5) 43. Rf3 {[%emt 0:04:42] Hoping for Bc3.} Rf7 {[%emt 0:00:13]} 44. Kf1 {[%emt 0:07:21]} Nf8 {[%emt 0:03:20]} 45. b4 {[%emt 0:04:35]} Nxe6 {[%emt 0:03:08]} 46. dxe6 $40 {[%emt 0:00:06][%mdl 128] White wants a kill.} Ra7 {[%emt 0:00:04]} (46... Rg7 47. bxa5 bxa5) 47. bxa5 {[%emt 0:01:24] White is clearly winning.} bxa5 {[%emt 0:02:16]} 48. Rb3 {[%emt 0:01:51]} Ra8 {[%emt 0:00:02] Repels Rb8+} 49. Rb7 {[%emt 0:00:51] Threatens to win with Rf7.} e4 {[%emt 0:01:51]} 50. Bxe4 {[%emt 0:01:28] And now Rf7 would win.} Be5 {[%emt 0:00:03]} 51. Rf7 {[%emt 0:02:16]} Rb8 {[%emt 0:02:17]} 52. Rg6 {[%emt 0:02:09]} Rxg6 {[%emt 0:01:08]} 53. Bxg6 {[%emt 0:00:05] A strong pair of Bishops.} Nf4 {[%emt 0:00:05] [#]} 54. Rxf4 $1 {[%emt 0:00:23] Weighted Error Value: White=0.24 (precise) /Black=0.39.  Mistake:       	White=5     	Black=9      Inaccurate:     	---       	Black=4      OK:         	White=14    	Black=12     Best:        	White=2     	Black=3} 1-0

[Event "Romanian Superliga 2024"]
[Site "Mamaia"]
[Date "2024.10.02"]
[Round "5.30"]
[White "Szabo, Attila"]
[Black "Popescu, Daniel-Vasilica"]
[Result "1-0"]
[ECO "B33"]
[WhiteElo "2137"]
[BlackElo "1953"]
[Annotator "NA RC"]
[PlyCount "75"]
[EventDate "2024.09.26"]
[EventType "team-tourn"]
[EventCountry "ROU"]
[SourceTitle "playchess.com"]
[Source "ChessBase"]
[SourceQuality "1"]
[TimeControl "40/5400+30:1800+30"]

1. e4 {[%emt 0:00:32]} c5 {[%emt 0:00:11]} 2. Nf3 {[%emt 0:00:12]} e6 {[%emt 0:00:06]} 3. d4 {[%emt 0:00:57]} cxd4 {[%emt 0:00:07]} 4. Nxd4 {[%emt 0:00:06]} Nf6 {[%emt 0:00:07]} 5. Nc3 {[%emt 0:00:08]} Nc6 {[%emt 0:00:10]} 6. Ndb5 {[%emt 0:00:58]} d6 {[%emt 0:01:34]} 7. Bf4 {[%emt 0:01:02]} e5 {[%emt 0:03:15]} 8. Bg5 {[%emt 0:00:15]} a6 {[%emt 0:00:53]} 9. Bxf6 {[%emt 0:00:27]} gxf6 {[%emt 0:00:19]} 10. Na3 {[%emt 0:00:05]} b5 {[%emt 0:00:57]} 11. Nd5 {[%emt 0:00:15]} Be7 {[%emt 0:11:09]} 12. c3 {[%emt 0:04:02]} f5 {[%emt 0:04:26]} 13. Bd3 {[%emt 0:03:11]} Be6 {[%emt 0:05:47]} 14. O-O {[%emt 0:05:24]} f4 {[%emt 0:09:57]} 15. Qh5 {[%emt 0:23:56]} O-O {[%emt 0:11:57]} (15... Rg8 $14) 16. Rfd1 $14 {[%emt 0:08:16]} ({White should play} 16. Nc2 $16) 16... Ra7 {[%emt 0:21:55]} 17. Nc2 {[%emt 0:06:25]} Kh8 {[%emt 0:03:59]} 18. Kh1 {[%emt 0:22:47]} Rg8 {[%emt 0:00:41]} 19. Be2 {[%emt 0:01:20]} Rg5 {[%emt 0:02:42]} 20. Qh6 {[%emt 0:02:02]} Rg6 {[%emt 0:00:46]} 21. Qh5 {[%emt 0:00:09]} Bf8 {[%emt 0:03:13]} 22. g3 {[%emt 0:05:07]} fxg3 {[%emt 0:08:25]} 23. fxg3 {[%emt 0:00:15]} Ne7 {[%emt 0:02:29]} 24. Ncb4 {[%emt 0:00:56]} Qc8 {[%emt 0:04:02]} 25. Qf3 {[%emt 0:01:40]} Nxd5 {[%emt 0:01:03]} 26. Nxd5 {[%emt 0:00:10]} f5 {[%emt 0:01:09]} 27. exf5 {[%emt 0:07:20]} Bxf5 {[%emt 0:00:06]} 28. Ne3 {[%emt 0:00:13]} Bd7 {[%emt 0:02:15]} 29. Bd3 {[%emt 0:03:02]} Rg8 {[%emt 0:00:19]} 30. Be4 {[%emt 0:00:31]} Be6 {[%emt 0:00:41]} 31. Rf1 {[%emt 0:01:40]} Rf7 {[%emt 0:00:40]} 32. Qh5 {[%emt 0:00:40]} Qd7 {[%emt 0:00:01]} 33. Rxf7 {[%emt 0:01:01]} Qxf7 {[%emt 0:00:05]} 34. Qxf7 {[%emt 0:00:40]} Bxf7 {[%emt 0:00:03]} 35. a4 {[%emt 0:00:10]} Be7 {[%emt 0:01:54]} 36. axb5 {[%emt 0:00:13]} axb5 {[%emt 0:00:09]} 37. Ra7 {[%emt 0:00:12]} Bg5 {[%emt 0:00:23]} 38. Rxf7 {[%emt 0:00:08]} 1-0

[Event "Romanian Superliga 2024"]
[Site "Mamaia"]
[Date "2024.10.03"]
[Round "6.2"]
[White "Aryan Chopra"]
[Black "Erdos, Viktor"]
[Result "1-0"]
[ECO "C42"]
[WhiteElo "2620"]
[BlackElo "2538"]
[Annotator "RC"]
[PlyCount "113"]
[EventDate "2024.09.26"]
[EventType "team-tourn"]
[EventCountry "ROU"]
[SourceTitle "playchess.com"]
[Source "ChessBase"]
[SourceQuality "1"]
[TimeControl "40/5400+30:1800+30"]

1. e4 {[%emt 0:00:03]} e5 {[%emt 0:04:04]} 2. Nf3 {[%emt 0:00:06]} Nf6 {[%emt 0:00:08]} 3. Nxe5 {[%emt 0:00:05]} d6 {[%emt 0:00:04]} 4. Nf3 {[%emt 0:00:04]} Nxe4 {[%emt 0:00:06]} 5. d4 {[%emt 0:00:04]} d5 {[%emt 0:00:05]} 6. Bd3 {[%emt 0:00:05]} Bd6 {[%emt 0:00:05]} 7. O-O {[%emt 0:00:07]} O-O {[%emt 0:00:05]} 8. c4 {[%emt 0:00:05]} c6 {[%emt 0:00:05]} 9. Qc2 {[%emt 0:00:24]} h6 {[%emt 0:00:42]} 10. c5 {[%emt 0:00:20]} Bc7 {[%emt 0:00:56]} 11. Nc3 {[%emt 0:00:10]} f5 {[%emt 0:01:31]} 12. a3 {[%emt 0:00:14]} Qf6 {[%emt 0:05:06]} 13. Ne2 {[%emt 0:00:41]} Ng5 {[%emt 0:11:56]} 14. Ne5 {[%emt 0:09:11]} Nd7 {[%emt 0:03:00]} 15. f4 {[%emt 0:02:28]} Ne4 {[%emt 0:00:42]} 16. b4 {[%emt 0:11:55]} Kh7 {[%emt 0:01:06]} 17. b5 {[%emt 0:07:55]} cxb5 {[%emt 0:05:10]} 18. Bxb5 {[%emt 0:00:32]} Qe6 {[%emt 0:00:13]} 19. c6 {[%emt 0:15:15]} Nxe5 {[%emt 0:10:48]} 20. fxe5 {[%emt 0:00:06]} Bb6 {[%emt 0:00:50]} 21. Be3 {[%emt 0:01:32]} g5 {[%emt 0:02:13]} 22. Ng3 {[%emt 0:05:59]} Kg7 {[%emt 0:20:44]} 23. Rac1 {[%emt 0:20:39]} bxc6 {[%emt 0:05:26]} 24. Bxc6 {[%emt 0:03:36]} Rb8 {[%emt 0:02:04]} 25. Qa2 {[%emt 0:06:51]} Nxg3 {[%emt 0:07:11]} 26. hxg3 {[%emt 0:00:05]} Bb7 {[%emt 0:00:03]} 27. Bxb7 {[%emt 0:01:56]} Rxb7 {[%emt 0:00:03]} 28. Qd2 {[%emt 0:03:02]} Rc7 {[%emt 0:08:31]} 29. a4 {[%emt 0:00:26]} Rxc1 {[%emt 0:05:17]} 30. Rxc1 {[%emt 0:00:06]} Rc8 {[%emt 0:00:09]} 31. Rb1 {[%emt 0:04:31]} Rb8 {[%emt 0:02:30]} 32. Qd3 {[%emt 0:01:56]} Rc8 {[%emt 0:00:10]} 33. Rf1 {[%emt 0:03:47]} Rf8 {[%emt 0:01:47]} 34. Kh2 {[%emt 0:00:03]} Qd7 {[%emt 0:01:31]} 35. Qa3 {[%emt 0:01:56]} Rc8 {[%emt 0:02:54]} 36. a5 {[%emt 0:00:41]} Bd8 {[%emt 0:00:03]} 37. Bd2 {[%emt 0:00:59]} Be7 {[%emt 0:00:52]} 38. Qd3 {[%emt 0:00:07]} Rc4 {[%emt 0:00:44]} 39. Rxf5 {[%emt 0:01:11]} a6 {[%emt 0:00:30]} 40. Rf1 {[%emt 0:00:00]} Qg4 {[%emt 0:00:00]} 41. Qb1 {[%emt 0:10:04]} Rxd4 {[%emt 0:23:25]} 42. Qb7 {[%emt 0:09:35]} Qh5+ {[%emt 0:00:22]} 43. Kg1 {[%emt 0:00:04]} Qe8 {[%emt 0:00:07]} 44. Be3 {[%emt 0:08:43]} Re4 {[%emt 0:00:59]} 45. Bc5 {[%emt 0:00:04]} Rxe5 {[%emt 0:00:06]} 46. Bd4 {[%emt 0:00:03]} Kg8 {[%emt 0:00:07]} 47. g4 {[%emt 0:02:27]} Bd6 {[%emt 0:06:11]} 48. Bxe5 {[%emt 0:00:31]} Qxe5 {[%emt 0:00:06]} 49. Qf7+ {[%emt 0:00:17]} Kh8 {[%emt 0:00:01]} 50. Qf6+ {[%emt 0:00:06]} Kh7 {[%emt 0:01:27]} 51. Qxe5 {[%emt 0:00:54]} Bxe5 {[%emt 0:00:01]} 52. Rf5 {[%emt 0:00:38]} Bc3 {[%emt 0:00:24]} 53. Rxd5 {[%emt 0:00:08]} Kg7 {[%emt 0:00:19]} 54. Rd7+ {[%emt 0:00:56]} Kf8 {[%emt 0:00:48]} 55. Rd6 {[%emt 0:00:04]} Bxa5 {[%emt 0:00:22]} 56. Rxh6 {[%emt 0:00:11]} Bd2 {[%emt 0:01:11]} 57. Rxa6 {[%emt 0:00:06]} 1-0

[Event "Romanian Superliga 2024"]
[Site "Mamaia"]
[Date "2024.10.03"]
[Round "6.3"]
[White "Grigore, George-Gabriel"]
[Black "Nisipeanu, Liviu-Dieter"]
[Result "0-1"]
[ECO "E32"]
[WhiteElo "2414"]
[BlackElo "2580"]
[Annotator "RC"]
[PlyCount "56"]
[EventDate "2024.09.26"]
[EventType "team-tourn"]
[EventCountry "ROU"]
[SourceTitle "playchess.com"]
[Source "ChessBase"]
[SourceQuality "1"]
[TimeControl "40/5400+30:1800+30"]

1. d4 {[%emt 0:00:35]} Nf6 {[%emt 0:00:07]} 2. c4 {[%emt 0:00:12]} e6 {[%emt 0:00:07]} 3. Nc3 {[%emt 0:00:14]} Bb4 {[%emt 0:00:07]} 4. Qc2 {[%emt 0:00:22]} O-O {[%emt 0:00:12]} 5. a3 {[%emt 0:00:08]} Bxc3+ {[%emt 0:00:05]} 6. Qxc3 {[%emt 0:00:04]} b6 {[%emt 0:00:08]} 7. Bg5 {[%emt 0:00:12]} Bb7 {[%emt 0:00:08]} 8. e3 {[%emt 0:00:25]} d6 {[%emt 0:00:07]} 9. f3 {[%emt 0:01:02]} h6 {[%emt 0:00:11]} 10. Bh4 {[%emt 0:00:04]} Nbd7 {[%emt 0:00:05]} 11. Bd3 {[%emt 0:00:16]} e5 {[%emt 0:00:08]} 12. O-O-O {[%emt 0:16:52]} e4 {[%emt 0:15:32]} 13. Bc2 {[%emt 0:03:41]} Qe8 {[%emt 0:07:23]} 14. f4 {[%emt 0:03:32]} b5 {[%emt 0:00:18]} 15. Nh3 {[%emt 0:26:11]} bxc4 {[%emt 0:00:30]} 16. Bxf6 {[%emt 0:00:12]} Nxf6 {[%emt 0:00:05]} 17. Qxc4 {[%emt 0:00:11]} Bd5 {[%emt 0:09:06]} 18. Qa4 {[%emt 0:04:37]} Qc8 {[%emt 0:06:21]} 19. Nf2 {[%emt 0:06:33]} a5 {[%emt 0:04:58]} 20. Rd2 {[%emt 0:13:11]} Qb7 {[%emt 0:04:36]} 21. g4 {[%emt 0:17:23]} Rfb8 {[%emt 0:00:25]} 22. Bd1 {[%emt 0:01:19]} Ra6 {[%emt 0:00:07]} 23. g5 {[%emt 0:00:44]} hxg5 {[%emt 0:10:01]} 24. fxg5 {[%emt 0:00:06]} Nh7 {[%emt 0:13:10]} 25. g6 {[%emt 0:01:00]} fxg6 {[%emt 0:01:18]} 26. Be2 {[%emt 0:03:14]} Rb6 {[%emt 0:04:00]} 27. Nd1 {[%emt 0:00:22]} Nf6 {[%emt 0:00:43]} 28. Bc4 {[%emt 0:00:52]} Qc6 {[%emt 0:01:00]} 0-1

[Event "Romanian Superliga 2024"]
[Site "Mamaia"]
[Date "2024.10.03"]
[Round "6.4"]
[White "Nanu, Costica-Ciprian"]
[Black "Istratescu, Andrei"]
[Result "1/2-1/2"]
[ECO "B33"]
[WhiteElo "2525"]
[BlackElo "2370"]
[Annotator "RC"]
[PlyCount "73"]
[EventDate "2024.09.26"]
[EventType "team-tourn"]
[EventCountry "ROU"]
[SourceTitle "playchess.com"]
[Source "ChessBase"]
[SourceQuality "1"]
[TimeControl "40/5400+30:1800+30"]

1. e4 {[%emt 0:00:44]} c5 {[%emt 0:00:44]} 2. Nf3 {[%emt 0:00:06]} e6 {[%emt 0:00:52]} 3. d4 {[%emt 0:00:06]} cxd4 {[%emt 0:00:03]} 4. Nxd4 {[%emt 0:00:07]} Nf6 {[%emt 0:04:59]} 5. Nc3 {[%emt 0:00:10]} Nc6 {[%emt 0:00:11]} 6. Ndb5 {[%emt 0:03:31]} d6 {[%emt 0:01:17]} 7. Bf4 {[%emt 0:00:19]} e5 {[%emt 0:00:03]} 8. Bg5 {[%emt 0:00:06]} a6 {[%emt 0:00:04]} 9. Na3 {[%emt 0:00:05]} b5 {[%emt 0:00:09]} 10. Nd5 {[%emt 0:00:11]} Be7 {[%emt 0:00:03]} 11. Bxf6 {[%emt 0:00:06]} Bxf6 {[%emt 0:00:03]} 12. c3 {[%emt 0:00:14]} O-O {[%emt 0:01:31]} 13. Nc2 {[%emt 0:00:35]} Rb8 {[%emt 0:00:53]} 14. Be2 {[%emt 0:01:09]} Bg5 {[%emt 0:02:15]} 15. O-O {[%emt 0:00:42]} Ne7 {[%emt 0:14:38]} 16. Nxe7+ {[%emt 0:01:37]} Bxe7 {[%emt 0:03:13]} 17. Nb4 {[%emt 0:00:44]} Bb7 {[%emt 0:00:57]} 18. Nd5 {[%emt 0:00:39]} Bxd5 {[%emt 0:04:45]} 19. Qxd5 {[%emt 0:00:44]} Qb6 {[%emt 0:00:13]} 20. Rad1 {[%emt 0:03:55]} Rfc8 {[%emt 0:03:19]} 21. Qb3 {[%emt 0:06:02]} Rc5 {[%emt 0:07:58]} 22. Rd5 {[%emt 0:02:36]} Rxd5 {[%emt 0:01:37]} 23. Qxd5 {[%emt 0:00:08]} Qc5 {[%emt 0:00:19]} 24. Rd1 {[%emt 0:01:45]} Qxd5 {[%emt 0:02:10]} 25. Rxd5 {[%emt 0:00:07]} Kf8 {[%emt 0:00:05]} 26. Kf1 {[%emt 0:01:24]} Ke8 {[%emt 0:00:12]} 27. Ke1 {[%emt 0:02:52]} Kd7 {[%emt 0:00:12]} 28. Bd1 {[%emt 0:03:14]} Bd8 {[%emt 0:06:00]} 29. Rd3 {[%emt 0:01:00]} b4 {[%emt 0:02:44]} 30. Bb3 {[%emt 0:05:49]} bxc3 {[%emt 0:00:25]} 31. bxc3 {[%emt 0:00:06]} Ke7 {[%emt 0:00:21]} 32. Rf3 {[%emt 0:00:05]} f6 {[%emt 0:00:08]} 33. Rh3 {[%emt 0:00:55]} h6 {[%emt 0:00:11]} 34. Rg3 {[%emt 0:00:12]} Kf8 {[%emt 0:00:05]} 35. Rd3 {[%emt 0:02:38]} Ke7 {[%emt 0:00:10]} 36. Rg3 {[%emt 0:05:39]} Kf8 {[%emt 0:00:05]} 37. Rd3 {[%emt 0:58:38]} 1/2-1/2

[Event "Romanian Superliga 2024"]
[Site "Mamaia"]
[Date "2024.10.03"]
[Round "6.6"]
[White "Magold, Filip"]
[Black "Szabo, Attila"]
[Result "1-0"]
[ECO "B39"]
[WhiteElo "2406"]
[BlackElo "2137"]
[Annotator "RC"]
[PlyCount "85"]
[EventDate "2024.09.26"]
[EventType "team-tourn"]
[EventCountry "ROU"]
[SourceTitle "playchess.com"]
[Source "ChessBase"]
[SourceQuality "1"]
[TimeControl "40/5400+30:1800+30"]

1. e4 {[%emt 0:00:29]} c5 {[%emt 0:00:57]} 2. Nf3 {[%emt 0:00:09]} Nc6 {[%emt 0:01:58]} 3. d4 {[%emt 0:00:09]} cxd4 {[%emt 0:00:06]} 4. Nxd4 {[%emt 0:00:06]} g6 {[%emt 0:01:26]} 5. c4 {[%emt 0:00:52]} Bg7 {[%emt 0:00:10]} 6. Be3 {[%emt 0:00:08]} Nf6 {[%emt 0:00:15]} 7. Nc3 {[%emt 0:00:14]} Ng4 {[%emt 0:00:53]} 8. Qxg4 {[%emt 0:00:09]} Nxd4 {[%emt 0:00:05]} 9. Qd1 {[%emt 0:00:05]} Ne6 {[%emt 0:00:20]} 10. Rc1 {[%emt 0:04:22]} Qa5 {[%emt 0:04:18]} 11. Be2 {[%emt 0:08:37]} b6 {[%emt 0:04:44]} 12. O-O {[%emt 0:02:09]} Bb7 {[%emt 0:00:10]} 13. f3 {[%emt 0:10:14]} d6 {[%emt 0:02:37]} 14. a3 {[%emt 0:04:09]} g5 {[%emt 0:06:08]} 15. Nb5 {[%emt 0:03:15]} Bxb2 {[%emt 0:12:32]} 16. Rb1 {[%emt 0:04:03]} Bc3 {[%emt 0:03:09]} 17. Rb3 {[%emt 0:05:01]} Bf6 {[%emt 0:18:38]} 18. Rb4 {[%emt 0:05:54]} Nc5 {[%emt 0:04:42]} 19. Nc7+ {[%emt 0:02:12]} Kf8 {[%emt 0:01:21]} 20. Nxa8 {[%emt 0:00:20]} Bxa8 {[%emt 0:01:40]} 21. Qc1 {[%emt 0:10:14]} h6 {[%emt 0:04:09]} 22. Kh1 {[%emt 0:00:16]} Kg7 {[%emt 0:00:49]} 23. Bd2 {[%emt 0:04:36]} Qa6 {[%emt 0:03:19]} 24. Rd1 {[%emt 0:06:46]} Bc6 {[%emt 0:00:27]} 25. Bf1 {[%emt 0:04:07]} Qc8 {[%emt 0:02:15]} 26. Re1 {[%emt 0:01:10]} Qc7 {[%emt 0:01:56]} 27. Rb1 {[%emt 0:00:34]} Qb7 {[%emt 0:05:50]} 28. Be3 {[%emt 0:01:49]} Qc7 {[%emt 0:00:36]} 29. Qd2 {[%emt 0:01:39]} Qc8 {[%emt 0:05:37]} 30. Bd3 {[%emt 0:04:34]} Qa6 {[%emt 0:01:30]} 31. Bxc5 {[%emt 0:00:57]} bxc5 {[%emt 0:00:20]} 32. f4 {[%emt 0:00:07]} e5 {[%emt 0:04:57]} 33. fxg5 {[%emt 0:01:32]} Bxg5 {[%emt 0:05:26]} 34. Qf2 {[%emt 0:00:45]} Rf8 {[%emt 0:01:04]} 35. h4 {[%emt 0:03:22]} Be7 {[%emt 0:00:20]} 36. Re3 {[%emt 0:00:54]} Bd7 {[%emt 0:01:19]} 37. Rg3+ {[%emt 0:01:17]} Kh7 {[%emt 0:00:08]} 38. Rb8 {[%emt 0:01:21]} Be6 {[%emt 0:01:02]} 39. Rxf8 {[%emt 0:00:32]} Bxf8 {[%emt 0:00:02]} 40. Be2 {[%emt 0:00:00]} Be7 {[%emt 0:00:00]} 41. Bg4 {[%emt 0:10:02]} Bxc4 {[%emt 0:10:43]} 42. Be2 {[%emt 0:00:10]} Kh8 {[%emt 0:09:37]} 43. Qf1 {[%emt 0:01:33]} 1-0